[Event "Titled Tuesday Blitz March 28 Late 2023"]
[White "Bortnyk, Olexandr"]
[Black "Paravyan, David"]
[WhiteFideId "14120828"]
[BlackFideId "4194985"]
[WhiteElo "2734"]
[BlackElo "2577"]
[Result "0-1"]
[Round "09"]
[TimeControl "180+2"]
[Date "2023.03.28"]
[WhiteClock "0:00:02"]
[BlackClock "0:00:15"]

1. e4 {[%clk 0:02:58]}  e5 {[%clk 0:02:59]} 2. Bc4 {[%clk 0:02:57]}  Nf6 {[%clk 0:02:59]} 3. d3 {[%clk 0:02:57]}  c6 {[%clk 0:02:54]} 4. Nf3 {[%clk 0:02:57]}  d5 {[%clk 0:02:55]} 5. Bb3 {[%clk 0:02:57]}  Bd6 {[%clk 0:02:55]} 6. Nc3 {[%clk 0:02:56]}  O-O {[%clk 0:02:54]} 7. O-O {[%clk 0:02:54]}  d4 {[%clk 0:02:32]} 8. Ne2 {[%clk 0:02:53]}  a5 {[%clk 0:02:33]} 9. a3 {[%clk 0:02:52]}  a4 {[%clk 0:02:33]} 10. Ba2 {[%clk 0:02:52]}  c5 {[%clk 0:02:28]} 11. Ng3 {[%clk 0:02:46]}  Be6 {[%clk 0:02:29]} 12. Nh4 {[%clk 0:02:37]}  Bxa2 {[%clk 0:02:25]} 13. Rxa2 {[%clk 0:02:38]}  Ra6 {[%clk 0:02:03]} 14. Ngf5 {[%clk 0:02:31]}  Bc7 {[%clk 0:01:53]} 15. Qf3 {[%clk 0:02:01]}  Kh8 {[%clk 0:01:49]} 16. Bg5 {[%clk 0:01:28]}  Nbd7 {[%clk 0:01:35]} 17. Qh3 {[%clk 0:01:21]}  Qe8 {[%clk 0:01:32]} 18. Raa1 {[%clk 0:00:58]}  Qe6 {[%clk 0:01:28]} 19. f4 {[%clk 0:00:51]}  exf4 {[%clk 0:01:22]} 20. Qf3 {[%clk 0:00:17]}  Rg8 {[%clk 0:01:04]} 21. Rae1 {[%clk 0:00:08]}  h6 {[%clk 0:01:04]} 22. Qh3 {[%clk 0:00:08]}  Be5 {[%clk 0:00:51]} 23. Nf3 {[%clk 0:00:08]}  Nh7 {[%clk 0:00:45]} 24. Bh4 {[%clk 0:00:03]}  g5 {[%clk 0:00:45]} 25. Nxe5 {[%clk 0:00:03]}  Nxe5 {[%clk 0:00:44]} 26. Bf2 {[%clk 0:00:03]}  Rb6 {[%clk 0:00:24]} 27. Rb1 {[%clk 0:00:04]}  Rg6 {[%clk 0:00:18]} 28. Be1 {[%clk 0:00:04]}  Nf6 {[%clk 0:00:16]} 29. Bd2 {[%clk 0:00:04]}  Kh7 {[%clk 0:00:16]} 30. c3 {[%clk 0:00:04]}  Rb3 {[%clk 0:00:16]} 31. Rfd1 {[%clk 0:00:03]}  Nfg4 {[%clk 0:00:16]} 32. Re1 {[%clk 0:00:02]}  Ne3 {[%clk 0:00:17]} 33. cxd4 {[%clk 0:00:02]}  Nxd3 {[%clk 0:00:15]} 34. d5 {[%clk 0:00:02]}  Qxe4 {[%clk 0:00:15]} 35. Rxe3 {[%clk 0:00:01]}  fxe3 {[%clk 0:00:15]} 36. Nxe3 {[%clk 0:00:02]}  Nf4 {[%clk 0:00:15]} 37. Qf5 {[%clk 0:00:02]}  Rxe3 {[%clk 0:00:15]} 0-1


[Site "https://www.chess.com"]

[Event "Titled Tuesday Blitz March 28 Late 2023"]
[White "Martinez Alcantara, Jose Eduardo"]
[Black "Durarbayli, Vasif"]
[WhiteFideId "3805662"]
[BlackFideId "13402935"]
[WhiteElo "2712"]
[BlackElo "2543"]
[Result "0-1"]
[Round "09"]
[TimeControl "180+2"]
[Date "2023.03.28"]
[WhiteClock "0:00:09"]
[BlackClock "0:00:04"]

1. e4 {[%clk 0:03:00]}  c5 {[%clk 0:02:57]} 2. Nf3 {[%clk 0:02:57]}  d6 {[%clk 0:02:57]} 3. c3 {[%clk 0:02:58]}  Nf6 {[%clk 0:02:57]} 4. h3 {[%clk 0:02:57]}  g6 {[%clk 0:02:53]} 5. Bd3 {[%clk 0:02:57]}  Bg7 {[%clk 0:02:53]} 6. Bc2 {[%clk 0:02:57]}  e5 {[%clk 0:02:54]} 7. O-O {[%clk 0:02:56]}  Nc6 {[%clk 0:02:54]} 8. d3 {[%clk 0:02:50]}  O-O {[%clk 0:02:52]} 9. Bg5 {[%clk 0:02:50]}  h6 {[%clk 0:02:51]} 10. Bxf6 {[%clk 0:02:50]}  Qxf6 {[%clk 0:02:51]} 11. Nbd2 {[%clk 0:02:51]}  Be6 {[%clk 0:02:50]} 12. Bb3 {[%clk 0:02:51]}  Rad8 {[%clk 0:02:45]} 13. Bxe6 {[%clk 0:02:50]}  Qxe6 {[%clk 0:02:46]} 14. Qb3 {[%clk 0:02:49]}  Qxb3 {[%clk 0:02:45]} 15. axb3 {[%clk 0:02:47]}  d5 {[%clk 0:02:44]} 16. Rfd1 {[%clk 0:02:41]}  Rd7 {[%clk 0:02:39]} 17. Kf1 {[%clk 0:02:37]}  Rfd8 {[%clk 0:02:39]} 18. Ke2 {[%clk 0:02:38]}  b6 {[%clk 0:02:28]} 19. exd5 {[%clk 0:02:14]}  Rxd5 {[%clk 0:02:29]} 20. Nc4 {[%clk 0:02:14]}  f5 {[%clk 0:02:26]} 21. g4 {[%clk 0:02:08]}  R5d7 {[%clk 0:02:05]} 22. gxf5 {[%clk 0:02:00]}  gxf5 {[%clk 0:02:06]} 23. Nh4 {[%clk 0:02:00]}  Ne7 {[%clk 0:01:54]} 24. Ne3 {[%clk 0:01:37]}  Rf8 {[%clk 0:01:49]} 25. Rg1 {[%clk 0:01:37]}  Kh7 {[%clk 0:01:49]} 26. Rg2 {[%clk 0:01:21]}  e4 {[%clk 0:01:27]} 27. dxe4 {[%clk 0:01:17]}  fxe4 {[%clk 0:01:27]} 28. Rg4 {[%clk 0:01:07]}  Bf6 {[%clk 0:01:12]} 29. Nhg2 {[%clk 0:00:51]}  Rfd8 {[%clk 0:00:43]} 30. Rd1 {[%clk 0:00:50]}  Rxd1 {[%clk 0:00:36]} 31. Nxd1 {[%clk 0:00:51]}  Nc6 {[%clk 0:00:26]} 32. Rxe4 {[%clk 0:00:50]}  Na5 {[%clk 0:00:27]} 33. Ra4 {[%clk 0:00:43]}  Rd7 {[%clk 0:00:24]} 34. Ra3 {[%clk 0:00:39]}  c4 {[%clk 0:00:19]} 35. b4 {[%clk 0:00:35]}  Nb3 {[%clk 0:00:19]} 36. Nge3 {[%clk 0:00:35]}  b5 {[%clk 0:00:19]} 37. Kf3 {[%clk 0:00:23]}  Bg5 {[%clk 0:00:18]} 38. Kg4 {[%clk 0:00:21]}  Rf7 {[%clk 0:00:13]} 39. Kg3 {[%clk 0:00:14]}  Nd2 {[%clk 0:00:08]} 40. Kg2 {[%clk 0:00:13]}  Ne4 {[%clk 0:00:08]} 41. Ng4 {[%clk 0:00:09]}  Rd7 {[%clk 0:00:04]} 42. Nde3 {[%clk 0:00:10]}  h5 {[%clk 0:00:03]} 43. Ne5 {[%clk 0:00:07]}  Rd2 {[%clk 0:00:04]} 44. Rxa7+ {[%clk 0:00:08]}  Kg8 {[%clk 0:00:03]} 45. Ra8+ {[%clk 0:00:07]}  Kh7 {[%clk 0:00:04]} 46. Ra7+ {[%clk 0:00:06]}  Kg8 {[%clk 0:00:04]} 47. Nd5 {[%clk 0:00:03]}  Rxd5 {[%clk 0:00:04]} 48. Kg1 {[%clk 0:00:04]}  Rxe5 {[%clk 0:00:04]} 49. h4 {[%clk 0:00:04]}  Bf6 {[%clk 0:00:04]} 50. f4 {[%clk 0:00:04]}  Re7 {[%clk 0:00:04]} 51. Ra6 {[%clk 0:00:05]}  Kf7 {[%clk 0:00:04]} 52. Rb6 {[%clk 0:00:05]}  Nd2 {[%clk 0:00:03]} 53. Rxb5 {[%clk 0:00:06]}  Nf3+ {[%clk 0:00:04]} 54. Kf2 {[%clk 0:00:06]}  Nxh4 {[%clk 0:00:05]} 55. Rxh5 {[%clk 0:00:07]}  Rd7 {[%clk 0:00:06]} 56. Rc5 {[%clk 0:00:07]}  Rd2+ {[%clk 0:00:06]} 57. Kg3 {[%clk 0:00:08]}  Rxb2 {[%clk 0:00:06]} 58. Rxc4 {[%clk 0:00:08]}  Nf5+ {[%clk 0:00:07]} 59. Kf3 {[%clk 0:00:08]}  Nd6 {[%clk 0:00:06]} 60. Rc6 {[%clk 0:00:07]}  Ke6 {[%clk 0:00:07]} 61. c4 {[%clk 0:00:08]}  Kd7 {[%clk 0:00:05]} 62. Rb6 {[%clk 0:00:09]}  Bd4 {[%clk 0:00:04]} 63. c5 {[%clk 0:00:09]}  Nc4 {[%clk 0:00:04]} 64. Rb7+ {[%clk 0:00:06]}  Kc6 {[%clk 0:00:04]} 65. Rb8 {[%clk 0:00:07]}  Nd2+ {[%clk 0:00:01]} 66. Kg4 {[%clk 0:00:07]}  Kd5 {[%clk 0:00:02]} 67. Rd8+ {[%clk 0:00:07]}  Ke4 {[%clk 0:00:02]} 68. c6 {[%clk 0:00:08]}  Rc2 {[%clk 0:00:02]} 69. b5 {[%clk 0:00:08]}  Nc4 {[%clk 0:00:03]} 70. Re8+ {[%clk 0:00:08]}  Kd5 {[%clk 0:00:02]} 71. Rd8+ {[%clk 0:00:09]}  Ke4 {[%clk 0:00:03]} 72. Re8+ {[%clk 0:00:08]}  Kd3 {[%clk 0:00:03]} 73. c7 {[%clk 0:00:07]}  Nb6 {[%clk 0:00:03]} 74. Re6 {[%clk 0:00:07]}  Rxc7 {[%clk 0:00:03]} 75. f5 {[%clk 0:00:07]}  Nd5 {[%clk 0:00:03]} 76. Rd6 {[%clk 0:00:08]}  Ke4 {[%clk 0:00:03]} 77. Re6+ {[%clk 0:00:08]}  Kd3 {[%clk 0:00:03]} 78. b6 {[%clk 0:00:09]}  Rb7 {[%clk 0:00:03]} 79. Rd6 {[%clk 0:00:10]}  Nf6+ {[%clk 0:00:04]} 80. Kg5 {[%clk 0:00:09]}  Ne4+ {[%clk 0:00:04]} 0-1


[Site "https://www.chess.com"]

[Event "Titled Tuesday Blitz March 28 Late 2023"]
[White "Sargsyan, Shant"]
[Black "Nakamura, Hikaru"]
[WhiteFideId "13306766"]
[BlackFideId "2016192"]
[WhiteElo "2628"]
[BlackElo "2879"]
[Result "1-0"]
[Round "09"]
[TimeControl "180+2"]
[Date "2023.03.28"]
[WhiteClock "0:00:33"]
[BlackClock "0:00:02"]

1. Nf3 {[%clk 0:03:00]}  d5 {[%clk 0:02:56]} 2. d4 {[%clk 0:03:00]}  Nc6 {[%clk 0:02:47]} 3. Bf4 {[%clk 0:02:59]}  Bg4 {[%clk 0:02:45]} 4. e3 {[%clk 0:02:59]}  e6 {[%clk 0:02:45]} 5. h3 {[%clk 0:02:59]}  Bh5 {[%clk 0:02:44]} 6. c4 {[%clk 0:02:59]}  Nf6 {[%clk 0:02:40]} 7. Nc3 {[%clk 0:02:59]}  Bb4 {[%clk 0:02:40]} 8. Be2 {[%clk 0:02:56]}  Ne4 {[%clk 0:02:39]} 9. Rc1 {[%clk 0:02:55]}  Bg6 {[%clk 0:02:39]} 10. O-O {[%clk 0:02:54]}  Nxc3 {[%clk 0:02:37]} 11. bxc3 {[%clk 0:02:53]}  Ba3 {[%clk 0:02:37]} 12. Rb1 {[%clk 0:02:54]}  Bxb1 {[%clk 0:02:28]} 13. Qxb1 {[%clk 0:02:54]}  Bd6 {[%clk 0:02:16]} 14. Qxb7 {[%clk 0:02:37]}  Na5 {[%clk 0:02:08]} 15. Qa6 {[%clk 0:02:29]}  Nxc4 {[%clk 0:02:08]} 16. Bxc4 {[%clk 0:02:23]}  dxc4 {[%clk 0:02:09]} 17. Qc6+ {[%clk 0:02:23]}  Ke7 {[%clk 0:02:08]} 18. Ne5 {[%clk 0:02:18]}  Re8 {[%clk 0:01:54]} 19. Qf3 {[%clk 0:01:45]}  Bxe5 {[%clk 0:01:43]} 20. Bxe5 {[%clk 0:01:45]}  f6 {[%clk 0:01:40]} 21. Bg3 {[%clk 0:01:44]}  Qd7 {[%clk 0:01:38]} 22. Qh5 {[%clk 0:01:41]}  h6 {[%clk 0:01:35]} 23. e4 {[%clk 0:01:37]}  Reb8 {[%clk 0:01:28]} 24. Qc5+ {[%clk 0:01:35]}  Kf7 {[%clk 0:01:28]} 25. Qxc4 {[%clk 0:01:36]}  Rb6 {[%clk 0:01:25]} 26. d5 {[%clk 0:01:32]}  Rc8 {[%clk 0:01:20]} 27. Rd1 {[%clk 0:01:24]}  Kg8 {[%clk 0:01:20]} 28. Kh2 {[%clk 0:01:22]}  Kh7 {[%clk 0:01:08]} 29. f4 {[%clk 0:01:23]}  exd5 {[%clk 0:01:06]} 30. Rxd5 {[%clk 0:01:22]}  Rd6 {[%clk 0:01:00]} 31. Ra5 {[%clk 0:01:16]}  c5 {[%clk 0:00:54]} 32. e5 {[%clk 0:01:12]}  fxe5 {[%clk 0:00:53]} 33. fxe5 {[%clk 0:01:12]}  Rd2 {[%clk 0:00:42]} 34. Qe4+ {[%clk 0:01:09]}  Kg8 {[%clk 0:00:41]} 35. e6 {[%clk 0:01:09]}  Qc6 {[%clk 0:00:37]} 36. Qxc6 {[%clk 0:01:00]}  Rxc6 {[%clk 0:00:38]} 37. e7 {[%clk 0:01:00]}  Re6 {[%clk 0:00:37]} 38. Rxa7 {[%clk 0:00:59]}  g5 {[%clk 0:00:23]} 39. Bf2 {[%clk 0:00:48]}  Rd5 {[%clk 0:00:18]} 40. Rc7 {[%clk 0:00:37]}  Kf7 {[%clk 0:00:08]} 41. Bxc5 {[%clk 0:00:37]}  Rd2 {[%clk 0:00:06]} 42. Rc8 {[%clk 0:00:35]}  Rde2 {[%clk 0:00:02]} 43. a4 {[%clk 0:00:33]} 1-0


[Site "https://www.chess.com"]

[Event "Titled Tuesday Blitz March 28 Late 2023"]
[White "Fedoseev, Vladimir"]
[Black "Xiong, Jeffery"]
[WhiteFideId "24130737"]
[BlackFideId "2047640"]
[WhiteElo "2752"]
[BlackElo "2726"]
[Result "1-0"]
[Round "09"]
[TimeControl "180+2"]
[Date "2023.03.28"]
[WhiteClock "0:00:11"]
[BlackClock "0:02:12"]

1. e4 {[%clk 0:03:00]}  e6 {[%clk 0:03:00]} 2. d4 {[%clk 0:03:00]}  d5 {[%clk 0:03:01]} 3. Nd2 {[%clk 0:03:00]}  c5 {[%clk 0:03:00]} 4. exd5 {[%clk 0:03:00]}  Qxd5 {[%clk 0:03:01]} 5. dxc5 {[%clk 0:03:00]}  Nf6 {[%clk 0:03:01]} 6. Ngf3 {[%clk 0:02:58]}  Qxc5 {[%clk 0:03:01]} 7. Bd3 {[%clk 0:02:56]}  Be7 {[%clk 0:03:02]} 8. O-O {[%clk 0:02:55]}  Nbd7 {[%clk 0:03:02]} 9. Qe2 {[%clk 0:02:44]}  Qc7 {[%clk 0:03:02]} 10. Nb3 {[%clk 0:02:37]}  b6 {[%clk 0:03:02]} 11. a4 {[%clk 0:02:28]}  O-O {[%clk 0:03:02]} 12. a5 {[%clk 0:02:27]}  Bb7 {[%clk 0:03:02]} 13. a6 {[%clk 0:02:28]}  Bxf3 {[%clk 0:03:01]} 14. Qxf3 {[%clk 0:02:25]}  Ne5 {[%clk 0:03:02]} 15. Qg3 {[%clk 0:02:00]}  Bd6 {[%clk 0:03:02]} 16. Bf4 {[%clk 0:01:47]}  Nh5 {[%clk 0:03:01]} 17. Qh3 {[%clk 0:01:10]}  Nxd3 {[%clk 0:03:00]} 18. Bxd6 {[%clk 0:01:05]}  Qxd6 {[%clk 0:03:01]} 19. Qxd3 {[%clk 0:00:47]}  Qxd3 {[%clk 0:03:01]} 20. cxd3 {[%clk 0:00:48]}  Nf4 {[%clk 0:03:02]} 21. Rfd1 {[%clk 0:00:47]}  Rac8 {[%clk 0:03:02]} 22. g3 {[%clk 0:00:44]}  Nd5 {[%clk 0:03:01]} 23. Nd4 {[%clk 0:00:41]}  Rc5 {[%clk 0:03:01]} 24. Rdc1 {[%clk 0:00:36]}  Rfc8 {[%clk 0:03:00]} 25. Rc4 {[%clk 0:00:35]}  Ne7 {[%clk 0:02:32]} 26. Rac1 {[%clk 0:00:32]}  Rxc4 {[%clk 0:02:24]} 27. Rxc4 {[%clk 0:00:29]}  Rxc4 {[%clk 0:02:24]} 28. dxc4 {[%clk 0:00:28]}  Kf8 {[%clk 0:02:25]} 29. b4 {[%clk 0:00:20]}  Ke8 {[%clk 0:02:25]} 30. Kf1 {[%clk 0:00:20]}  Kd7 {[%clk 0:02:25]} 31. Ke2 {[%clk 0:00:20]}  e5 {[%clk 0:02:21]} 32. Nb3 {[%clk 0:00:18]}  f5 {[%clk 0:02:17]} 33. b5 {[%clk 0:00:16]}  Kd6 {[%clk 0:02:17]} 34. Kd3 {[%clk 0:00:13]}  Ng6 {[%clk 0:02:17]} 35. c5+ {[%clk 0:00:13]}  bxc5 {[%clk 0:02:16]} 36. b6 {[%clk 0:00:13]}  e4+ {[%clk 0:02:12]} 37. Kc3 {[%clk 0:00:13]}  Ne7 {[%clk 0:02:11]} 38. bxa7 {[%clk 0:00:12]}  Nd5+ {[%clk 0:02:11]} 39. Kc4 {[%clk 0:00:12]}  Nc7 {[%clk 0:02:11]} 40. Nxc5 {[%clk 0:00:12]}  Kc6 {[%clk 0:02:12]} 41. Ne6 {[%clk 0:00:11]}  Na8 {[%clk 0:02:12]} 42. Nxg7 {[%clk 0:00:11]} 1-0


[Site "https://www.chess.com"]

[Event "Titled Tuesday Blitz March 28 Late 2023"]
[White "Svane, Rasmus"]
[Black "Ozer, Omer Faruk"]
[WhiteFideId "4657101"]
[BlackFideId "6354564"]
[WhiteElo "2597"]
[BlackElo "2260"]
[Result "1-0"]
[Round "09"]
[TimeControl "180+2"]
[Date "2023.03.28"]
[WhiteClock "0:00:09"]
[BlackClock "0:00:02"]

1. Nf3 {[%clk 0:03:00]}  Nf6 {[%clk 0:02:56]} 2. g3 {[%clk 0:03:00]}  b5 {[%clk 0:02:56]} 3. Bg2 {[%clk 0:03:00]}  Bb7 {[%clk 0:02:56]} 4. d4 {[%clk 0:03:01]}  e6 {[%clk 0:02:57]} 5. Bg5 {[%clk 0:03:01]}  d5 {[%clk 0:02:53]} 6. c3 {[%clk 0:02:49]}  Nbd7 {[%clk 0:02:52]} 7. a4 {[%clk 0:02:43]}  a6 {[%clk 0:02:51]} 8. b4 {[%clk 0:02:42]}  a5 {[%clk 0:02:36]} 9. axb5 {[%clk 0:02:22]}  axb4 {[%clk 0:02:36]} 10. Rxa8 {[%clk 0:02:23]}  Qxa8 {[%clk 0:02:35]} 11. O-O {[%clk 0:02:22]}  Qa5 {[%clk 0:02:27]} 12. Qc2 {[%clk 0:02:04]}  Qxb5 {[%clk 0:02:22]} 13. cxb4 {[%clk 0:02:02]}  Bxb4 {[%clk 0:02:21]} 14. Qxc7 {[%clk 0:02:01]}  O-O {[%clk 0:02:20]} 15. Bxf6 {[%clk 0:01:51]}  Nxf6 {[%clk 0:02:18]} 16. Ne5 {[%clk 0:01:31]}  Ba5 {[%clk 0:02:15]} 17. Qc2 {[%clk 0:01:26]}  Rc8 {[%clk 0:02:12]} 18. Qa2 {[%clk 0:01:26]}  Ba6 {[%clk 0:02:04]} 19. Bf3 {[%clk 0:01:19]}  Ne4 {[%clk 0:01:50]} 20. Na3 {[%clk 0:01:10]}  Qa4 {[%clk 0:01:39]} 21. Bxe4 {[%clk 0:00:46]}  dxe4 {[%clk 0:01:40]} 22. d5 {[%clk 0:00:46]}  Bb4 {[%clk 0:00:16]} 23. dxe6 {[%clk 0:00:26]}  Bxa3 {[%clk 0:00:13]} 24. exf7+ {[%clk 0:00:26]}  Kf8 {[%clk 0:00:14]} 25. Qe6 {[%clk 0:00:24]}  Rc7 {[%clk 0:00:10]} 26. Rb1 {[%clk 0:00:19]}  Bb5 {[%clk 0:00:02]} 27. Qf5 {[%clk 0:00:09]} 1-0


[Site "https://www.chess.com"]

[Event "Titled Tuesday Blitz March 28 Late 2023"]
[White "Bluebaum, Matthias"]
[Black "Mammadov, Zaur"]
[WhiteFideId "24651516"]
[BlackFideId "13401033"]
[WhiteElo "2638"]
[BlackElo "2441"]
[Result "0-1"]
[Round "09"]
[TimeControl "180+2"]
[Date "2023.03.28"]
[WhiteClock "0:00:01"]
[BlackClock "0:00:14"]

1. d4 {[%clk 0:03:00]}  d5 {[%clk 0:02:59]} 2. c4 {[%clk 0:03:01]}  dxc4 {[%clk 0:02:59]} 3. e4 {[%clk 0:03:00]}  e5 {[%clk 0:02:59]} 4. Nf3 {[%clk 0:02:59]}  exd4 {[%clk 0:02:59]} 5. Bxc4 {[%clk 0:03:00]}  Nc6 {[%clk 0:02:59]} 6. O-O {[%clk 0:02:59]}  Be6 {[%clk 0:03:00]} 7. Nbd2 {[%clk 0:02:59]}  Qd7 {[%clk 0:02:48]} 8. a3 {[%clk 0:02:43]}  Bd6 {[%clk 0:02:40]} 9. b4 {[%clk 0:02:33]}  a6 {[%clk 0:02:40]} 10. Qb3 {[%clk 0:02:12]}  Nge7 {[%clk 0:02:12]} 11. Re1 {[%clk 0:01:57]}  Ng6 {[%clk 0:02:00]} 12. Bb2 {[%clk 0:01:57]}  O-O {[%clk 0:01:55]} 13. Bxe6 {[%clk 0:01:53]}  fxe6 {[%clk 0:01:53]} 14. Nc4 {[%clk 0:01:39]}  Kh8 {[%clk 0:01:28]} 15. e5 {[%clk 0:01:29]}  Be7 {[%clk 0:01:25]} 16. Rad1 {[%clk 0:01:30]}  Nf4 {[%clk 0:01:17]} 17. Nxd4 {[%clk 0:01:23]}  Nxd4 {[%clk 0:01:18]} 18. Rxd4 {[%clk 0:01:23]}  Qc6 {[%clk 0:01:18]} 19. Ne3 {[%clk 0:01:07]}  Rad8 {[%clk 0:01:11]} 20. Rc4 {[%clk 0:00:55]}  Qb6 {[%clk 0:01:04]} 21. Qc2 {[%clk 0:00:23]}  Nd3 {[%clk 0:00:56]} 22. Rf1 {[%clk 0:00:21]}  Nxf2 {[%clk 0:00:37]} 23. Qe2 {[%clk 0:00:16]}  Bg5 {[%clk 0:00:20]} 24. Bc1 {[%clk 0:00:12]}  Nd1 {[%clk 0:00:17]} 25. Rxf8+ {[%clk 0:00:05]}  Rxf8 {[%clk 0:00:18]} 26. Qxd1 {[%clk 0:00:05]}  Bxe3+ {[%clk 0:00:18]} 27. Kh1 {[%clk 0:00:05]}  Qb5 {[%clk 0:00:16]} 28. Qe2 {[%clk 0:00:01]}  Bxc1 {[%clk 0:00:16]} 29. Rf4 {[%clk 0:00:01]}  Rxf4 {[%clk 0:00:14]} 0-1


[Site "https://www.chess.com"]

[Event "Titled Tuesday Blitz March 28 Late 2023"]
[White "Drygalov, Sergey"]
[Black "Duda, Jan-Krzysztof"]
[WhiteFideId "24171743"]
[BlackFideId "1170546"]
[WhiteElo "2533"]
[BlackElo "2790"]
[Result "0-1"]
[Round "09"]
[TimeControl "180+2"]
[Date "2023.03.28"]
[WhiteClock "0:00:33"]
[BlackClock "0:01:05"]

1. d4 {[%clk 0:03:00]}  Nf6 {[%clk 0:02:59]} 2. c4 {[%clk 0:03:01]}  g6 {[%clk 0:03:00]} 3. Nc3 {[%clk 0:03:01]}  d5 {[%clk 0:03:00]} 4. Nf3 {[%clk 0:02:59]}  Bg7 {[%clk 0:03:00]} 5. cxd5 {[%clk 0:03:00]}  Nxd5 {[%clk 0:03:01]} 6. e4 {[%clk 0:03:00]}  Nxc3 {[%clk 0:03:01]} 7. bxc3 {[%clk 0:03:01]}  c5 {[%clk 0:03:02]} 8. Be3 {[%clk 0:03:02]}  O-O {[%clk 0:02:59]} 9. Be2 {[%clk 0:03:01]}  e6 {[%clk 0:02:50]} 10. O-O {[%clk 0:02:59]}  b6 {[%clk 0:02:50]} 11. Qd2 {[%clk 0:02:52]}  Bb7 {[%clk 0:02:49]} 12. e5 {[%clk 0:02:38]}  cxd4 {[%clk 0:02:48]} 13. cxd4 {[%clk 0:02:37]}  Nc6 {[%clk 0:02:48]} 14. Rfd1 {[%clk 0:02:33]}  Rc8 {[%clk 0:02:47]} 15. Bh6 {[%clk 0:02:29]}  Ne7 {[%clk 0:02:41]} 16. Bxg7 {[%clk 0:02:22]}  Kxg7 {[%clk 0:02:42]} 17. h4 {[%clk 0:02:21]}  h5 {[%clk 0:02:38]} 18. Qf4 {[%clk 0:02:13]}  Nf5 {[%clk 0:02:37]} 19. Ng5 {[%clk 0:02:10]}  Re8 {[%clk 0:02:19]} 20. Rac1 {[%clk 0:01:56]}  Rxc1 {[%clk 0:02:18]} 21. Qxc1 {[%clk 0:01:47]}  Nxh4 {[%clk 0:02:18]} 22. Qf4 {[%clk 0:01:33]}  Nf5 {[%clk 0:02:19]} 23. f3 {[%clk 0:01:29]}  h4 {[%clk 0:02:13]} 24. Ne4 {[%clk 0:01:13]}  Qe7 {[%clk 0:01:18]} 25. Nf6 {[%clk 0:01:03]}  Rd8 {[%clk 0:01:18]} 26. Qg5 {[%clk 0:00:51]}  Rxd4 {[%clk 0:01:06]} 27. Nh5+ {[%clk 0:00:44]}  Kf8 {[%clk 0:01:06]} 28. Qh6+ {[%clk 0:00:33]}  Nxh6 {[%clk 0:01:05]} 0-1


[Site "https://www.chess.com"]

[Event "Titled Tuesday Blitz March 28 Late 2023"]
[White "Korchmar, Vasiliy"]
[Black "Grigoriants, Sergey"]
[WhiteFideId "24131750"]
[BlackFideId "4130804"]
[WhiteElo "2370"]
[BlackElo "2502"]
[Result "1-0"]
[Round "09"]
[TimeControl "180+2"]
[Date "2023.03.28"]
[WhiteClock "0:00:12"]
[BlackClock "0:00:02"]

1. e4 {[%clk 0:03:00]}  c5 {[%clk 0:02:52]} 2. Nf3 {[%clk 0:03:00]}  Nc6 {[%clk 0:02:51]} 3. d4 {[%clk 0:03:00]}  cxd4 {[%clk 0:02:51]} 4. Nxd4 {[%clk 0:03:01]}  Nf6 {[%clk 0:02:48]} 5. Nc3 {[%clk 0:03:00]}  e6 {[%clk 0:02:48]} 6. g3 {[%clk 0:02:58]}  d6 {[%clk 0:02:41]} 7. Bg2 {[%clk 0:02:57]}  Bd7 {[%clk 0:02:41]} 8. Nb3 {[%clk 0:02:53]}  a6 {[%clk 0:02:40]} 9. a4 {[%clk 0:02:43]}  Na5 {[%clk 0:02:38]} 10. Nxa5 {[%clk 0:02:33]}  Qxa5 {[%clk 0:02:37]} 11. O-O {[%clk 0:02:34]}  Bc6 {[%clk 0:02:33]} 12. Be3 {[%clk 0:02:24]}  Be7 {[%clk 0:02:29]} 13. f4 {[%clk 0:02:23]}  O-O {[%clk 0:02:26]} 14. h3 {[%clk 0:02:14]}  Rac8 {[%clk 0:01:59]} 15. Qd2 {[%clk 0:02:11]}  Kh8 {[%clk 0:01:25]} 16. g4 {[%clk 0:02:09]}  h6 {[%clk 0:01:06]} 17. Kh1 {[%clk 0:02:07]}  Qb4 {[%clk 0:00:54]} 18. a5 {[%clk 0:02:02]}  Rfd8 {[%clk 0:00:39]} 19. g5 {[%clk 0:02:02]}  Ng8 {[%clk 0:00:34]} 20. f5 {[%clk 0:01:58]}  d5 {[%clk 0:00:26]} 21. exd5 {[%clk 0:01:28]}  exd5 {[%clk 0:00:22]} 22. f6 {[%clk 0:01:19]}  d4 {[%clk 0:00:22]} 23. fxe7 {[%clk 0:01:13]}  Nxe7 {[%clk 0:00:21]} 24. gxh6 {[%clk 0:01:01]}  dxc3 {[%clk 0:00:11]} 25. hxg7+ {[%clk 0:01:02]}  Kg8 {[%clk 0:00:10]} 26. Qf2 {[%clk 0:00:57]}  Bxg2+ {[%clk 0:00:08]} 27. Kxg2 {[%clk 0:00:58]}  Qe4+ {[%clk 0:00:07]} 28. Kg1 {[%clk 0:00:57]}  Nf5 {[%clk 0:00:06]} 29. Qxf5 {[%clk 0:00:50]}  Qxe3+ {[%clk 0:00:06]} 30. Kh1 {[%clk 0:00:50]}  Rc7 {[%clk 0:00:04]} 31. Rae1 {[%clk 0:00:42]}  Qc5 {[%clk 0:00:04]} 32. Re5 {[%clk 0:00:35]}  Qc6+ {[%clk 0:00:03]} 33. Kh2 {[%clk 0:00:11]}  Rd2+ {[%clk 0:00:02]} 34. Kg3 {[%clk 0:00:12]}  Qg2+ {[%clk 0:00:02]} 35. Kh4 {[%clk 0:00:12]} 1-0


[Site "https://www.chess.com"]